bitfinex/quotes_SOLUSD_20250307
["timestamp","ask_amount","ask_price","bid_price","bid_amount"]
[1741308391271,11.31218325,136.17,135.98,143.5275]
[1741308391605,2.0,136.11,135.93,221.51825725]
[1741308391781,86.95324893,136.09,135.95,9.65209835]
[1741308391984,36.87819462,136.08,135.95,9.65209835]
[1741308392241,68.64964886,136.09,135.93,221.51825725]
[1741308392242,36.49886236,136.06,135.93,219.3928946]
[1741308392372,36.991855,136.04,135.93,219.3928946]
[1741308392572,36.37771447,136.02,135.93,219.3928946]
[1741308392894,36.61505819,136.0,135.93,219.3928946]
[1741308393467,36.61505819,136.0,135.93,63.1066711]
[1741308393803,36.49886236,136.06,135.93,63.1066711]
[1741308394102,36.49886236,136.06,135.94,18.64964886]
[1741308394307,36.49886236,136.06,135.95,0.14216157]
[1741308394507,36.50063271,136.12,135.95,138.08432314]
[1741308394675,36.50063271,136.12,135.98,18.79181043]
[1741308394871,36.50063271,136.12,135.98,18.64964886]
[1741308395206,36.13841055,136.11,135.98,18.64964886]
[1741308395497,36.13841055,136.11,135.99,0.28432314]
[1741308395895,36.13841055,136.11,136.0,18.64964886]
[1741308396103,36.13841055,136.11,136.01,0.14216157]
[1741308396417,36.13841055,136.11,136.02,18.64964886]
[1741308396579,36.13841055,136.11,136.03,0.14216157]
[1741308396785,36.48139641,136.16,136.04,18.64964886]
[1741308397178,36.48139641,136.16,136.05,0.14216157]
[1741308397400,36.48139641,136.16,136.04,18.64964886]
[1741308397603,36.48139641,136.16,136.05,0.28432314]
[1741308397813,36.48139641,136.16,136.06,336.52334886]
[1741308398312,11.31218325,136.17,136.02,2.0]
[1741308398313,12.61253684,136.06,136.02,2.0]
[1741308398481,36.48139641,136.16,136.07,2.14216157]
[1741308398682,11.31218325,136.17,136.14,20.64964886]
[1741308398877,22.62436651,136.2,136.15,0.14216157]
[1741308399080,22.62436651,136.2,136.17,0.14216157]
[1741308399309,22.62436651,136.2,136.18,2.0]
[1741308399516,18.48186651,136.2,136.16,137.8]
[1741308399681,36.10581287,136.26,136.2,0.28432314]
[1741308399885,0.033,136.26,136.22,0.14216157]
[1741308400101,0.033,136.26,136.12,0.14216157]
[1741308400297,0.033,136.26,136.14,0.14216157]
[1741308400607,81.99284372,136.23,136.08,0.14216157]
[1741308400810,81.99284372,136.23,136.05,8.1787]
[1741308400985,81.99284372,136.23,136.04,137.8]
[1741308401186,81.99284372,136.23,136.04,449.8]
[1741308401386,81.99284372,136.23,136.04,451.8]
[1741308401703,81.99284372,136.23,136.04,449.8]
[1741308401907,36.44980419,136.21,136.02,159.26]
[1741308402218,36.78948597,136.22,136.05,18.64964886]
[1741308402409,36.78948597,136.22,136.09,2.0]
[1741308402612,36.78948597,136.22,136.1,18.64964886]
[1741308402907,36.78948597,136.22,136.03,18.64964886]
[1741308403111,36.44980419,136.21,136.03,18.64964886]
[1741308403287,36.54517298,136.17,136.02,159.26]
[1741308403608,50.74139641,136.16,136.02,159.26]
[1741308404112,50.74139641,136.16,136.03,18.64964886]
[1741308404289,14.26,136.16,136.03,156.44964886]
[1741308404610,36.44980419,136.21,136.04,20.64964886]
[1741308404910,36.44980419,136.21,135.98,8.1787]
[1741308404911,36.54517298,136.17,135.98,312.0]
[1741308405107,1.10599649,136.18,136.02,18.64964886]
[1741308405311,1.10599649,136.18,136.02,156.44964886]
[1741308405610,1.10599649,136.18,136.03,0.14216157]
[1741308405911,36.54517298,136.17,136.03,0.14216157]
[1741308406102,36.62357039,136.22,136.05,2.28432314]
[1741308406103,36.44980419,136.21,136.05,2.28432314]
[1741308406304,51.06948597,136.22,136.08,18.64964886]
[1741308406506,14.28,136.22,136.09,0.14216157]
[1741308406687,14.28,136.22,136.08,18.64964886]
[1741308406888,45.28173303,136.23,136.09,0.14216157]
[1741308407122,45.28173303,136.23,136.11,0.14216157]
[1741308407296,45.28173303,136.23,136.1,18.64964886]
[1741308407499,45.28173303,136.23,136.11,18.79181043]
[1741308407703,45.28173303,136.23,136.14,18.79181043]
[1741308407907,45.28173303,136.23,136.14,18.64964886]
[1741308408214,82.02584372,136.23,136.09,18.64964886]
[1741308408915,132.02584372,136.23,136.05,159.16]
[1741308409296,86.44980419,136.21,136.01,2.0]
[1741308409626,36.38443144,136.19,136.02,2.0]
[1741308409810,36.54517298,136.17,136.01,139.8]
[1741308410004,36.54517298,136.17,136.02,18.79181043]
[1741308410216,36.54517298,136.17,136.02,18.64964886]
[1741308410416,36.54517298,136.17,136.02,156.44964886]
[1741308410595,36.78948597,136.22,136.06,18.64964886]
[1741308410788,36.90693178,136.2,136.06,18.64964886]
[1741308411415,36.90693178,136.2,136.03,18.79181043]
[1741308411803,36.90693178,136.2,136.06,18.64964886]
[1741308412019,36.44980419,136.21,136.06,330.64964886]
[1741308412313,51.14948597,136.22,136.06,330.64964886]
[1741308412830,51.14948597,136.22,136.08,0.14216157]
[1741308413019,51.14948597,136.22,136.07,18.64964886]
[1741308413400,14.36,136.22,136.08,0.14216157]
[1741308413830,45.28173303,136.23,136.1,0.14216157]
[1741308414037,45.28173303,136.23,136.12,2.14216157]
[1741308414198,45.28173303,136.23,136.13,18.64964886]
[1741308414512,45.28173303,136.23,136.12,18.79181043]
[1741308414907,45.28173303,136.23,136.12,18.64964886]
[1741308415206,45.28173303,136.23,136.13,0.14216157]
[1741308415698,45.28173303,136.23,136.14,18.64964886]
[1741308416192,45.28173303,136.23,136.13,0.14216157]
[1741308416399,45.28173303,136.23,136.15,0.14216157]
[1741308416617,45.28173303,136.23,136.14,18.64964886]
[1741308416818,45.28173303,136.23,136.2,18.64964886]
[1741308417029,45.28173303,136.23,136.22,20.79181043]
[1741308417314,17.51473303,136.23,136.22,216.99476263]
[1741308417700,9.32553303,136.23,136.22,158.733972]
[1741308417901,9.32553303,136.23,136.22,216.99476263]
[1741308418101,9.18343303,136.23,136.22,275.25555326]
[1741308418314,0.033,136.26,136.25,2.14216157]
[1741308418514,0.033,136.26,136.25,223.77157475]
[1741308418706,0.033,136.26,136.25,222.2313296]
[1741308418913,67.87309954,136.29,136.28,18.79181043]
[1741308419229,67.87309954,136.29,136.28,519.8113296]
[1741308419419,64.09609954,136.29,136.28,578.07212023]
[1741308419623,64.09609954,136.29,136.28,461.55053897]
[1741308420316,66.72746606,136.33,136.32,2.0]
[1741308420515,66.72746606,136.33,136.32,137.45555326]
[1741308420730,49.88672816,136.39,136.38,2.14216157]
[1741308421022,49.88672816,136.39,136.38,222.3313296]
[1741308421408,49.88672816,136.39,136.38,162.07053897]
[1741308421610,49.88672816,136.39,136.38,164.07053897]
[1741308421826,49.88672816,136.39,136.38,203.68168074]
[1741308422015,25.97462816,136.39,136.38,222.3313296]
[1741308422240,25.97462816,136.39,136.38,163.9283774]
[1741308422529,25.97462816,136.39,136.38,128.61656697]
[1741308422703,25.97462816,136.39,136.36,18.64964886]
[1741308422704,25.97462816,136.39,136.36,128.61656697]
[1741308423029,25.97462816,136.39,136.33,2.0]
[1741308423200,25.97462816,136.39,136.33,128.61656697]
[1741308423524,25.97462816,136.39,136.38,14.89348483]
[1741308424103,25.97462816,136.39,136.3,34.75146464]
[1741308424104,44.62427702,136.39,136.3,34.75146464]
[1741308424298,18.64964886,136.37,136.3,34.75146464]
[1741308424525,18.64964886,136.35,136.32,27.38396464]
[1741308424830,38.56723805,136.37,136.26,49.64494949]
[1741308425131,36.1244612,136.29,136.14,128.61656697]
[1741308425422,51.54799537,136.28,136.08,266.30927679]
[1741308425628,51.54799537,136.28,136.08,208.04848616]
[1741308425807,51.54799537,136.28,136.1,0.03]
[1741308426211,36.07281287,136.26,136.18,68.1186407]
[1741308426517,144.55630333,136.25,136.18,68.1186407]
[1741308426719,194.55630333,136.25,136.18,66.45771518]
[1741308426918,18.79181043,136.21,136.18,19.22811518]
[1741308427113,18.79181043,136.19,136.18,5.89481518]
[1741308427309,33.29181043,136.19,136.15,88.33346599]
[1741308427519,68.79181043,136.17,136.15,60.98896391]
[1741308427731,68.79181043,136.17,136.15,56.83665011]
[1741308427910,68.79181043,136.16,136.15,52.68433631]
[1741308428108,18.79181043,136.16,136.15,48.53202251]
[1741308428308,0.14216157,136.16,136.1,0.03]
[1741308428509,14.5,136.19,136.1,0.03]
[1741308428720,18.64964886,136.23,136.1,0.03]
[1741308428929,0.14216157,136.22,136.1,0.03]
[1741308429228,18.64964886,136.21,136.1,0.03]
[1741308429443,18.79181043,136.18,136.1,0.03]
[1741308429612,55.4148082,136.16,136.1,0.03]
[1741308429927,18.79181043,136.14,136.1,0.03]
[1741308430133,18.79181043,136.12,136.1,0.03]
[1741308430323,0.14216157,136.1,136.02,0.03]
[1741308432026,18.64964886,136.08,136.02,0.03]
[1741308432607,50.0,136.09,136.02,0.03]
[1741308432608,18.64964886,136.09,136.02,0.03]
[1741308432809,18.64964886,136.11,136.02,0.03]
[1741308433134,195.52611297,136.13,136.02,0.03]
[1741308433329,18.64964886,136.1,136.02,0.03]
[1741308433637,36.70080309,136.12,136.02,0.03]
[1741308433825,18.64964886,136.12,136.02,0.03]
[1741308434026,55.35045195,136.12,136.02,0.03]
[1741308434229,18.64964886,136.09,136.02,0.03]
[1741308434528,36.56339852,136.11,136.02,0.03]
[1741308434723,158.98,136.13,136.02,0.03]
[1741308434724,36.70080309,136.12,136.02,0.03]
[1741308434917,18.64964886,136.11,136.02,0.03]
[1741308435133,36.70080309,136.12,136.02,0.03]
[1741308435437,0.14216157,136.1,136.02,0.03]
[1741308435732,18.64964886,136.09,136.02,0.03]
[1741308435936,36.70080309,136.12,136.02,0.03]
[1741308436105,18.64964886,136.09,136.02,0.03]
[1741308436533,18.64964886,136.11,136.02,0.03]
[1741308436712,36.70080309,136.12,136.02,0.03]
[1741308437130,18.64964886,136.09,136.02,0.03]
[1741308437412,18.64964886,136.08,136.02,0.03]
[1741308437612,101.22112263,136.11,136.02,0.03]
[1741308437826,36.91700555,136.1,135.96,0.28432314]
[1741308438119,18.64964886,136.1,135.98,312.0]
[1741308438332,2.0,136.06,135.91,164.28405064]
[1741308438636,9.94734217,136.1,135.95,58.26079063]
[1741308438842,2.0,136.08,135.96,0.14216157]
[1741308439046,2.0,136.06,135.93,70.0496711]
[1741308439248,18.64964886,136.08,135.94,0.14216157]
[1741308439420,22.12545,136.09,135.94,20.47805032]
[1741308439618,22.12545,136.09,135.97,0.14216157]
[1741308439935,22.12545,136.09,135.99,58.54511377]
[1741308440140,54.71038194,136.11,135.99,0.28432314]
[1741308440935,54.71038194,136.11,136.01,0.14216157]
[1741308441324,22.116566,136.12,136.04,312.0]
[1741308441639,22.116566,136.12,136.05,7.30506157]
[1741308441821,44.90922507,136.15,136.05,7.30506157]
[1741308442241,67.01655907,136.15,136.06,0.14216157]
[1741308442422,44.90922507,136.15,136.07,0.14216157]
[1741308442737,44.90922507,136.15,136.09,58.54511377]
[1741308442939,44.90922507,136.15,136.11,0.28432314]
[1741308443145,37.37412507,136.15,136.11,0.28432314]
[1741308443321,37.37412507,136.15,136.13,0.28432314]
[1741308443322,29.83902507,136.15,136.13,0.28432314]
[1741308443516,29.83902507,136.15,136.14,13.24496157]
[1741308443517,1.43552507,136.15,136.14,13.24496157]
[1741308443715,22.093204,136.24,136.14,13.24496157]
[1741308443914,24.093204,136.24,136.14,13.1028]
[1741308444117,2.0,136.2,136.07,12.91888266]
[1741308444315,2.0,136.15,136.01,76.36345434]
[1741308444765,175.8,136.19,136.02,58.26079063]
[1741308444943,173.8,136.19,136.07,312.0]
[1741308445317,159.2,136.19,136.08,0.14216157]
[1741308445538,17.22511836,136.21,136.08,77.19476263]
[1741308445747,9.94631836,136.21,136.12,0.14216157]
[1741308445939,9.94631836,136.21,136.14,0.28432314]
[1741308446529,166.6607,136.28,136.14,0.28432314]
[1741308446729,159.18,136.28,136.16,0.28432314]
[1741308447043,22.125957,136.25,136.16,1.54139799]
[1741308447340,0.033,136.25,136.2,0.14216157]
[1741308447830,0.033,136.25,136.15,104.17095434]
[1741308448021,0.033,136.25,136.16,0.14216157]
[1741308448224,0.033,136.25,136.17,0.14216157]
[1741308448443,0.033,136.25,136.18,312.0]
[1741308448644,0.033,136.25,136.19,0.14216157]
[1741308449153,0.033,136.25,136.15,27.8075]
[1741308449327,0.033,136.25,136.02,50.0]
[1741308449328,2.0,136.22,136.06,12.7174]
[1741308449657,0.033,136.25,136.15,77.19476263]
[1741308449947,0.033,136.25,136.18,0.14216157]
[1741308450138,0.033,136.25,136.17,0.28432314]
[1741308450342,0.033,136.25,136.18,0.14216157]
[1741308450529,0.033,136.25,136.17,76.50561591]
[1741308450844,0.033,136.25,136.23,0.14216157]
[1741308451148,0.033,136.25,136.24,18.933972]
[1741308451447,26.00762816,136.39,136.25,0.14216157]
[1741308451651,62.59618622,136.39,136.27,0.28432314]
[1741308451946,62.59618622,136.39,136.31,0.14216157]
[1741308451947,26.00762816,136.39,136.31,0.14216157]
[1741308452151,26.00762816,136.39,136.34,0.14216157]
[1741308452529,9.96121279,136.36,136.34,18.933972]
[1741308452739,9.96121279,136.36,136.34,156.733972]
[1741308453265,2.42611279,136.36,136.34,138.08432314]
[1741308453564,2.42611279,136.36,136.33,18.933972]
[1741308453756,2.42611279,136.36,136.33,78.73424749]
[1741308453928,2.42611279,136.36,136.33,60.08459863]
[1741308454132,2.42611279,136.36,136.33,78.7341802]
[1741308454361,26.00762816,136.39,136.35,77.19476263]
[1741308454664,26.00762816,136.39,136.38,0.28432314]
[1741308454827,26.00762816,136.39,136.38,0.14216157]
[1741308455153,26.00762816,136.39,136.37,18.933972]
[1741308455333,26.00762816,136.39,136.38,389.05260106]
[1741308455528,26.00762816,136.39,136.38,468.733972]
[1741308456030,26.00762816,136.39,136.38,312.14216157]
[1741308456227,26.00762816,136.39,136.38,330.933972]
[1741308456428,26.00762816,136.39,136.38,526.99476263]
[1741308456638,26.00762816,136.39,136.38,468.733972]
[1741308456851,26.00762816,136.39,136.38,312.0]
[1741308457049,26.00762816,136.39,136.32,150.982]
[1741308457354,26.00762816,136.39,136.36,77.19476263]
[1741308457555,26.00762816,136.39,136.38,0.14216157]
[1741308457866,26.00762816,136.39,136.35,58.26079063]
[1741308458034,26.00762816,136.39,136.35,0.14216157]
[1741308458236,26.00762816,136.39,136.33,139.33937262]
[1741308458472,26.00762816,136.39,136.35,0.14216157]
[1741308458667,26.00762816,136.39,136.34,18.64964886]
[1741308458847,26.00762816,136.39,136.35,0.14216157]
[1741308459167,26.00762816,136.39,136.32,13.182]
[1741308459355,26.00762816,136.39,136.31,137.8]
[1741308459554,26.00762816,136.39,136.32,0.14216157]
[1741308459732,26.00762816,136.39,136.32,20.47358002]
[1741308459931,26.00762816,136.39,136.34,77.19476263]
[1741308460135,26.00762816,136.39,136.36,0.28432314]
[1741308460439,26.00762816,136.39,136.36,156.733972]
[1741308460665,26.00762816,136.39,136.38,58.4029522]
[1741308460834,0.033,136.4,136.39,0.28432314]
[1741308461030,135.74619909,136.42,136.41,0.28432314]
[1741308461236,135.74619909,136.42,136.41,214.99476263]
[1741308461562,59.8640738,136.46,136.43,0.28432314]
[1741308461731,59.8640738,136.46,136.45,77.19476263]
[1741308462462,59.7219738,136.46,136.45,214.99476263]
[1741308462857,46.3886738,136.46,136.45,214.99476263]
[1741308463057,46.3886738,136.48,136.45,214.99476263]
[1741308463360,0.033,136.53,136.49,0.28432314]
[1741308463565,0.033,136.53,136.52,312.28432314]
[1741308463755,0.033,136.53,136.52,526.99476263]
[1741308463942,180.99493213,136.54,136.53,0.28432314]
[1741308464262,180.99493213,136.54,136.53,0.14216157]
[1741308464462,180.99493213,136.54,136.49,137.8]
[1741308464636,180.99493213,136.54,136.5,0.14216157]
[1741308464833,180.99493213,136.54,136.47,137.8]
[1741308465144,180.99493213,136.54,136.45,54.08331218]
[1741308465868,180.99493213,136.54,136.45,113.88227263]
[1741308466050,180.99493213,136.54,136.46,19.66665897]
[1741308466244,180.99493213,136.54,136.47,0.14216157]
[1741308466458,180.99493213,136.54,136.46,19.66665897]
[1741308466763,2.0,136.52,136.46,19.66665897]
[1741308466948,2.0,136.51,136.46,19.66665897]
[1741308467148,12.8832,136.53,136.46,19.66665897]
[1741308467336,180.99493213,136.54,136.47,0.14216157]
[1741308468646,180.99493213,136.54,136.47,196.34511377]
[1741308469144,180.99493213,136.54,136.49,0.14216157]
[1741308469455,180.99493213,136.54,136.5,0.14216157]
[1741308469654,180.99493213,136.54,136.49,0.14216157]
[1741308469850,180.99493213,136.54,136.47,0.28432314]
[1741308470049,180.99493213,136.54,136.47,138.08432314]
[1741308470249,180.99493213,136.54,136.47,137.94216157]
[1741308470555,180.99493213,136.54,136.46,19.66665897]
[1741308470757,180.99493213,136.54,136.47,0.14216157]
[1741308471169,180.99493213,136.54,136.48,0.14216157]
[1741308471344,180.99493213,136.54,136.53,11.06527094]
[1741308472348,180.99493213,136.54,136.53,11.20743251]
[1741308472547,180.99493213,136.54,136.53,0.14216157]
[1741308472956,180.99493213,136.54,136.53,228.97476263]
[1741308473266,180.99493213,136.54,136.53,170.713972]
[1741308473443,180.99493213,136.54,136.53,228.97476263]
[1741308473950,180.99493213,136.54,136.53,540.97476263]
[1741308474363,180.88583213,136.54,136.53,540.97476263]
[1741308476065,180.74373213,136.54,136.53,540.97476263]
[1741308476949,19.17373213,136.54,136.53,403.17476263]
[1741308477360,19.17373213,136.54,136.53,599.23555326]
[1741308477361,5.84043213,136.54,136.53,599.23555326]
[1741308477568,2.64693213,136.54,136.53,607.89917167]
[1741308477771,203.61929864,136.57,136.54,0.28432314]
[1741308477940,203.61929864,136.57,136.56,135.45555326]
[1741308478360,137.70735265,136.57,136.56,136.79457744]
[1741308478540,100.89754215,136.57,136.56,214.99476263]
[1741308478952,57.01007476,136.57,136.56,273.25555326]
[1741308479151,33.09797476,136.57,136.56,280.57825326]
[1741308479675,33.09797476,136.57,136.56,281.91727744]
[1741308479851,226.24366516,136.6,136.56,281.91727744]
[1741308480058,188.12586516,136.6,136.59,185.45555326]
[1741308480257,134.78793168,136.6,136.59,324.59428334]
[1741308480458,42.8180982,136.6,136.59,331.91538334]
[1741308480646,42.8180982,136.6,136.59,223.65459271]
[1741308480848,42.6759982,136.6,136.59,593.93330668]
[1741308481056,9.82e-05,136.6,136.59,643.91538334]
[1741308481247,0.033,136.65,136.63,50.14216157]
[1741308481444,6.785e-05,136.65,136.64,0.35540392]
[1741308481663,6.785e-05,136.65,136.64,135.66879561]
[1741308481871,6.785e-05,136.65,136.64,254.81914675]
[1741308482048,6.785e-05,136.65,136.64,254.67698518]
[1741308482382,6.785e-05,136.65,136.64,196.27403298]
[1741308482670,226.24366516,136.72,136.65,0.14216157]
[1741308482873,226.24366516,136.72,136.67,58.54511377]
[1741308483550,189.46514963,136.68,136.67,273.25555326]
[1741308484058,226.24366516,136.72,136.68,68.933972]
[1741308484256,226.24366516,136.72,136.71,116.8059044]
[1741308484463,226.24366516,136.72,136.71,606.43025326]
[1741308484664,226.24366516,136.72,136.71,714.69104389]
[1741308484665,175.42764868,136.72,136.71,714.69104389]
[1741308484855,112.52834868,136.72,136.71,714.69104389]
[1741308485049,97.86881632,136.72,136.71,714.69104389]
[1741308485255,64.55718396,136.72,136.71,714.69104389]
[1741308485455,226.24366516,136.75,136.74,50.14216157]
[1741308485656,218.16654246,136.75,136.74,324.79022407]
[1741308485957,218.16654246,136.75,136.74,304.6059044]
[1741308486168,47.0936485,136.75,136.74,340.74231054]
[1741308486366,10.62644992,136.75,136.74,340.41555347]
[1741308486756,10.62644992,136.75,136.74,256.19201398]
[1741308486953,10.62644992,136.75,136.74,206.04985241]
[1741308487166,10.62644992,136.75,136.74,9.84690021]
[1741308487384,10.62644992,136.75,136.74,69.64241921]
[1741308487549,10.62644992,136.75,136.74,11.38162858]
[1741308487755,10.62644992,136.75,136.74,69.64241921]
[1741308487956,10.62644992,136.75,136.74,241.70909284]
[1741308488171,10.62644992,136.75,136.74,240.17436447]
[1741308488481,10.48434992,136.75,136.74,240.17436447]
[1741308488664,10.48434992,136.75,136.74,552.17436447]
[1741308488861,10.48434992,136.75,136.74,414.2322029]
[1741308489282,10.48434992,136.75,136.74,414.37436447]
[1741308489577,10.48434992,136.75,136.74,355.97141227]
[1741308489795,10.48434992,136.75,136.74,370.75835612]
[1741308490279,10.48434992,136.75,136.74,380.39201398]
[1741308490488,11.94684992,136.75,136.74,335.35365786]
[1741308490667,11.94684992,136.75,136.74,23.35365786]
[1741308491067,11.94684992,136.75,136.73,43.61600835]
[1741308491284,18.64964886,136.74,136.73,8.35e-06]
[1741308491463,13.40934992,136.75,136.73,8.35e-06]
[1741308491662,13.40934992,136.75,136.69,58.4029522]
[1741308491863,13.40934992,136.75,136.71,0.14216157]
[1741308492059,2.0,136.73,136.65,67.29104676]
[1741308492275,6.8308,136.73,136.65,127.08754567]
[1741308492490,6.8308,136.73,136.65,67.29104676]
[1741308492491,2.9265,136.68,136.65,67.29104676]
[1741308492784,12.0358,136.67,136.65,30.38934676]
[1741308493181,18.8666,136.73,136.67,0.28432314]
[1741308493388,18.8666,136.73,136.69,58.4029522]
[1741308493564,10.48434992,136.75,136.7,0.14216157]
[1741308493965,10.48434992,136.75,136.7,59.93835687]
[1741308494167,10.48434992,136.75,136.72,0.28432314]
[1741308494369,10.48434992,136.75,136.74,58.4029522]
[1741308494575,10.48434992,136.75,136.74,0.14216157]
[1741308494765,10.48434992,136.75,136.73,0.14216157]
[1741308494972,13.40934992,136.75,136.73,0.14216157]
[1741308495371,13.40934992,136.75,136.67,1.53541605]
[1741308495586,20.64964886,136.74,136.65,1.53555746]
[1741308495886,2.0,136.72,136.64,13.64]
[1741308496063,18.64964886,136.71,136.64,13.64]
[1741308496394,2.0,136.71,136.6,320.47683024]
[1741308496575,18.64964886,136.68,136.6,262.21603961]
[1741308496775,14.3646,136.69,136.6,90.21603961]
[1741308496988,12.3646,136.69,136.6,91.75239411]
[1741308497182,12.3646,136.69,136.63,0.14216157]
[1741308497387,12.3646,136.69,136.62,312.0]
[1741308497584,12.3646,136.69,136.63,59.79689695]
[1741308497788,12.3646,136.69,136.64,0.14216157]
[1741308498403,12.3646,136.69,136.62,1.53613746]
[1741308498571,2.9265,136.68,136.63,0.14216157]
[1741308498895,2.9265,136.68,136.63,1.53612595]
[1741308499090,2.9595,136.68,136.64,0.14216157]
[1741308499398,18.64964886,136.67,136.62,0.03]
[1741308499579,2.9595,136.68,136.62,1.56651948]
[1741308499896,18.64964886,136.67,136.62,0.03]
[1741308500100,2.9595,136.68,136.62,0.03]
[1741308500297,0.033,136.68,136.62,0.03]
[1741308500500,0.033,136.68,136.65,0.14216157]
[1741308500705,0.033,136.68,136.67,0.14216157]
[1741308501090,0.033,136.68,136.66,0.14216157]
[1741308501579,0.033,136.68,136.62,0.03]
[1741308501885,18.64964886,136.66,136.62,0.03]
[1741308502274,2.0,136.65,136.62,0.03]
[1741308502581,23.21104886,136.64,136.56,13.64]
[1741308502786,20.64964886,136.62,136.52,1.53708078]
[1741308503086,2.0,136.55,136.5,0.03]
[1741308503273,18.64964886,136.53,136.5,0.03]
[1741308503589,2.0,136.56,136.5,0.03]
[1741308503792,2.0,136.59,136.5,0.03]
[1741308504104,2.0,136.54,136.5,0.03]
[1741308504400,18.64964886,136.6,136.51,0.14216157]
[1741308504573,2.0,136.56,136.5,0.03]
[1741308504775,2.0,136.51,136.5,0.03]
[1741308505092,18.64964886,136.5,136.48,0.03]
[1741308505514,2.0,136.48,136.39,158.42]
[1741308505683,2.0,136.45,136.36,196.06079063]
[1741308505993,2.0,136.46,136.34,196.09079063]
[1741308506210,18.64964886,136.44,136.35,58.26079063]
[1741308506404,2.0,136.42,136.34,1.56920317]
[1741308506592,2.733,136.41,136.34,0.03]
[1741308506799,0.733,136.41,136.35,1.53935341]
[1741308506973,0.733,136.43,136.35,59.80014404]
[1741308507176,0.7327,136.47,136.41,312.0]
[1741308507395,0.7327,136.47,136.42,0.14216157]
[1741308507711,0.7327,136.47,136.4,58.4029522]
[1741308507874,11.20945002,136.43,136.35,58.26079063]
[1741308508071,11.20945002,136.43,136.37,58.26079063]
[1741308508410,11.20945002,136.41,136.39,58.26079063]
[1741308508577,11.20945002,136.41,136.4,73.72357948]
[1741308508780,11.20945002,136.41,136.4,15.46278885]
[1741308508999,11.20945002,136.41,136.4,73.72357948]
[1741308509780,11.20945002,136.41,136.4,72.18511377]
[1741308509999,11.20945002,136.41,136.4,158.94154265]
[1741308510177,0.7329,136.43,136.4,13.64]
[1741308510492,2.5653,136.43,136.34,13.66]
[1741308510696,2.5653,136.43,136.4,312.0]
[1741308510903,0.7328,136.45,136.41,0.14216157]
[1741308511110,18.64964886,136.44,136.4,312.0]
[1741308511309,0.7328,136.45,136.34,13.66]
[1741308511604,21.21454886,136.45,136.36,0.14216157]
[1741308511800,20.64964886,136.44,136.35,1.53888757]
[1741308512105,2.0,136.41,136.34,15.19915268]
[1741308512272,20.64964886,136.41,136.31,1.5392476]
[1741308512479,2.0,136.37,136.3,158.5]
[1741308512705,0.7333,136.36,136.3,172.16]
[1741308513000,4.5666,136.36,136.3,172.16]
[1741308513208,20.64964886,136.35,136.22,145.23046186]
[1741308513508,20.64964886,136.35,136.26,58.26079063]
[1741308513675,2.0,136.33,136.25,58.26079063]
[1741308513878,18.64964886,136.33,136.26,1.54031349]
[1741308514102,18.64964886,136.33,136.26,58.26079063]
[1741308514310,18.64964886,136.35,136.32,312.0]
[1741308514474,18.64964886,136.31,136.24,71.92079063]
[1741308514816,2.5677,136.3,136.25,6.80519034]
[1741308514997,2.0,136.34,136.25,8.345642]
[1741308515194,0.7334,136.34,136.29,0.14216157]
[1741308515406,20.64964886,136.33,136.23,1.5398672]
[1741308515705,2.0,136.32,136.23,59.80065783]
[1741308515907,2.0,136.32,136.24,0.14216157]
[1741308516118,2.567,136.34,136.26,58.54511377]
[1741308516425,2.567,136.34,136.32,312.0]
[1741308516627,20.64964886,136.33,136.32,312.0]
[1741308516998,2.0,136.31,136.22,58.26079063]
[1741308517323,18.64964886,136.28,136.19,58.26079063]
[1741308517525,20.64964886,136.28,136.19,58.26079063]
[1741308517698,2.0,136.27,136.2,0.03]
[1741308517891,20.64964886,136.28,136.2,0.03]
[1741308518093,2.0,136.29,136.26,0.14216157]
[1741308518412,18.64964886,136.3,136.26,0.14216157]
[1741308518611,18.64964886,136.28,136.25,312.0]
[1741308519006,20.64964886,136.28,136.25,312.0]
[1741308519203,2.7337,136.29,136.25,312.0]
[1741308519414,0.7337,136.29,136.25,312.0]
[1741308519618,0.7337,136.29,136.21,58.26079063]
[1741308519619,0.7336,136.31,136.24,58.26079063]
[1741308519807,0.7335,136.33,136.27,0.14216157]
[1741308520012,2.0,136.36,136.27,0.14216157]
[1741308520013,2.0,136.36,136.29,0.28432314]
[1741308520195,12.701,136.38,136.31,0.14216157]
[1741308520395,2.0,136.36,136.31,0.14216157]
[1741308520630,18.64964886,136.35,136.29,0.14216157]
[1741308520796,19.38304886,136.35,136.29,0.14216157]